bitfinex/quotes_SOLUSD_20230116
["timestamp","ask_amount","ask_price","bid_price","bid_amount"]
[1673897224452,20.0,23.531,23.503,20.0]
[1673897224680,20.0,23.53,23.504,17.0]
[1673897225199,20.0,23.53,23.505,20.0]
[1673897225397,57.25029139,23.53,23.498,20.0]
[1673897225608,20.0,23.529,23.5,20.0]
[1673897226036,20.0,23.529,23.5,44.66]
[1673897226867,20.0,23.53,23.5,44.66]
[1673897226868,20.0,23.53,23.501,17.0]
[1673897227094,20.0,23.535,23.502,20.0]
[1673897227305,20.0,23.534,23.504,20.0]
[1673897227623,20.0,23.533,23.505,17.0]
[1673897228028,20.0,23.533,23.506,20.0]
[1673897228239,37.0,23.533,23.507,17.0]
[1673897228875,20.0,23.532,23.507,17.0]
[1673897229095,17.0,23.531,23.507,17.0]
[1673897229304,20.0,23.53,23.507,17.0]
[1673897229711,394.3,23.537,23.51,24.66]
[1673897229918,394.3,23.537,23.512,20.0]
[1673897230147,394.3,23.537,23.513,17.0]
[1673897230468,394.3,23.537,23.514,20.0]
[1673897230680,109.5838,23.547,23.515,17.0]
[1673897230862,20.0,23.546,23.516,20.0]
[1673897231072,20.0,23.546,23.517,17.0]
[1673897231390,20.0,23.544,23.517,17.0]
[1673897231909,20.0,23.546,23.518,20.0]
[1673897232246,20.0,23.546,23.519,17.0]
[1673897232441,20.0,23.546,23.517,116.1945]
[1673897232859,17.0,23.545,23.517,116.1945]
[1673897233071,20.0,23.544,23.517,116.1945]
[1673897233485,20.0,23.544,23.518,20.0]
[1673897233697,20.0,23.543,23.518,20.0]
[1673897233905,20.0,23.541,23.517,116.1945]
[1673897234243,20.0,23.54,23.517,116.1945]
[1673897234562,20.0,23.54,23.512,108.4503]
[1673897234871,20.0,23.538,23.513,20.0]
[1673897235189,37.0,23.537,23.513,20.0]
[1673897235808,20.0,23.537,23.513,20.0]
[1673897236034,20.0,23.54,23.514,17.0]
[1673897236748,20.0,23.54,23.514,38.46196354]
[1673897236961,20.0,23.542,23.515,20.0]
[1673897237179,20.0,23.542,23.516,17.0]
[1673897237384,17.0,23.541,23.516,17.0]
[1673897237714,20.0,23.54,23.513,20.0]
[1673897237921,20.0,23.538,23.513,20.0]
[1673897238107,37.0,23.537,23.514,17.0]
[1673897238317,20.0,23.537,23.514,17.0]
[1673897238744,20.0,23.537,23.515,20.0]
[1673897238955,20.0,23.542,23.516,17.0]
[1673897239157,17.0,23.541,23.516,17.0]
[1673897239491,20.0,23.54,23.516,17.0]
[1673897239692,17.0,23.539,23.516,17.0]
[1673897239913,20.0,23.538,23.516,17.0]
[1673897240114,20.0,23.538,23.514,17.0]
[1673897240332,20.0,23.537,23.514,17.0]
[1673897240748,20.0,23.537,23.513,20.0]
[1673897240967,20.0,23.536,23.512,108.4503]
[1673897241151,20.0,23.535,23.512,108.4503]
[1673897241361,20.0,23.534,23.512,108.4503]
[1673897241575,17.0,23.533,23.512,108.4503]
[1673897241805,20.0,23.531,23.512,108.4503]
[1673897242333,20.0,23.53,23.512,108.4503]
[1673897242524,20.0,23.53,23.506,20.0]
[1673897242984,20.0,23.533,23.507,21.46196354]
[1673897243491,20.0,23.555,23.51,24.66]
[1673897243685,20.0,23.537,23.511,20.0]
[1673897243894,20.0,23.537,23.506,20.0]
[1673897244727,34.81163558,23.536,23.505,113.8019]
[1673897244942,61.8982,23.535,23.504,110.4851]
[1673897245148,4.8982,23.534,23.504,110.36999511]
[1673897245361,17.0,23.533,23.504,110.36999511]
[1673897245578,20.0,23.531,23.499,108.2717]
[1673897245881,41.8982,23.53,23.486,26.16513321]
[1673897246104,4.8982,23.529,23.488,108.2717]
[1673897246313,17.0,23.528,23.488,108.2717]
[1673897246515,24.8982,23.527,23.488,108.2717]
[1673897246729,20.0,23.525,23.488,128.2717]
[1673897246935,21.8982,23.524,23.488,128.2717]
[1673897247184,40.0,23.523,23.488,128.2717]
[1673897247357,17.0,23.522,23.488,128.2717]
[1673897247572,20.0,23.521,23.488,128.2717]
[1673897247795,37.0,23.52,23.489,41.46196354]
[1673897247998,20.0,23.519,23.489,41.46196354]
[1673897248211,17.0,23.518,23.49,20.0]
[1673897248521,20.0,23.517,23.49,20.0]
[1673897248926,17.0,23.516,23.488,108.2717]
[1673897249144,24.8982,23.515,23.488,108.2717]
[1673897249353,17.0,23.514,23.488,108.2717]
[1673897249570,20.0,23.513,23.488,108.2717]
[1673897249788,37.0,23.512,23.488,108.2717]
[1673897250016,20.0,23.51,23.488,108.2717]
[1673897250196,37.0,23.509,23.47,6.52540937]
[1673897250404,37.0,23.509,23.481,108.5544]
[1673897250621,37.0,23.509,23.482,20.0]
[1673897250831,20.0,23.508,23.482,20.0]
[1673897251046,37.0,23.507,23.482,20.0]
[1673897251251,37.0,23.507,23.481,108.5544]
[1673897251698,20.0,23.506,23.482,20.0]
[1673897251884,37.0,23.505,23.482,20.0]
[1673897252322,4.8982,23.507,23.482,20.0]
[1673897252528,4.8982,23.507,23.482,41.46196354]
[1673897252741,4.8982,23.507,23.484,20.0]
[1673897252935,20.0,23.51,23.485,17.0]
[1673897253468,20.0,23.519,23.485,38.46196354]
[1673897253681,20.0,23.518,23.486,20.0]
[1673897253892,20.0,23.517,23.487,17.0]
[1673897254550,20.0,23.516,23.488,20.0]
[1673897254720,20.0,23.515,23.489,17.0]
[1673897254931,20.0,23.516,23.489,17.0]
[1673897255259,20.0,23.516,23.49,20.0]
[1673897255260,20.0,23.515,23.49,20.0]
[1673897255680,20.0,23.514,23.483,21.46196354]
[1673897255884,41.8982,23.513,23.481,128.5544]
[1673897256088,4.8982,23.512,23.481,128.5544]
[1673897256304,37.0,23.511,23.481,128.5544]
[1673897256519,20.0,23.51,23.481,128.5544]
[1673897256833,37.0,23.509,23.481,128.5544]
[1673897257029,20.0,23.508,23.481,108.5544]
[1673897257243,17.0,23.507,23.481,108.5544]
[1673897257466,20.0,23.506,23.481,108.5544]
[1673897257685,17.0,23.505,23.482,20.0]
[1673897257871,20.0,23.508,23.482,20.0]
[1673897258318,20.0,23.508,23.483,17.0]
[1673897258628,20.0,23.508,23.482,20.0]
[1673897259252,20.0,23.508,23.483,17.0]
[1673897259564,20.0,23.508,23.482,20.0]
[1673897259759,24.8982,23.508,23.482,20.0]
[1673897260521,20.0,23.507,23.482,20.0]
[1673897260919,24.8982,23.508,23.482,20.0]
[1673897260920,4.8982,23.508,23.49,24.66]
[1673897261146,4.8982,23.508,23.491,17.0]
[1673897261335,394.3,23.52,23.491,17.0]
[1673897261551,115.957,23.528,23.49,24.66]
[1673897261763,32.64639723,23.527,23.491,110.947]
[1673897262096,4.8982,23.526,23.492,37.0]
[1673897262538,20.0,23.525,23.492,37.0]
[1673897262843,4.8982,23.524,23.492,37.0]
[1673897263057,24.8982,23.524,23.492,37.0]
[1673897263253,20.0,23.524,23.492,37.0]
[1673897263470,17.0,23.523,23.492,37.0]
[1673897263781,40.0,23.522,23.492,58.46196354]
[1673897263990,17.0,23.521,23.491,130.947]
[1673897264200,20.0,23.52,23.491,130.947]
[1673897264417,20.0,23.52,23.492,20.0]
[1673897264840,20.0,23.521,23.493,108.7177]
[1673897265036,20.0,23.521,23.494,20.0]
[1673897265247,20.0,23.521,23.495,17.0]
[1673897265448,20.0,23.521,23.496,20.0]
[1673897265661,20.0,23.521,23.495,17.0]
[1673897266205,20.0,23.521,23.491,110.947]
[1673897266638,37.0,23.52,23.492,20.0]
[1673897266833,20.0,23.519,23.492,20.0]
[1673897267030,20.0,23.517,23.492,20.0]
[1673897267248,20.0,23.516,23.491,110.947]
[1673897267464,37.0,23.516,23.491,110.947]
[1673897267656,20.0,23.515,23.491,110.947]
[1673897267873,37.0,23.514,23.481,20.0]
[1673897268094,4.8982,23.513,23.481,20.0]
[1673897268294,17.0,23.512,23.481,20.0]
[1673897268512,20.0,23.51,23.484,20.0]
[1673897268717,37.0,23.509,23.484,20.0]
[1673897269132,20.0,23.508,23.484,20.0]
[1673897269341,17.0,23.507,23.484,20.0]
[1673897269763,17.0,23.507,23.483,119.2328]
[1673897269983,20.0,23.506,23.483,119.2328]
[1673897270182,17.0,23.505,23.483,119.2328]
[1673897271043,17.0,23.505,23.484,20.0]
[1673897271879,20.0,23.508,23.484,20.0]
[1673897271880,20.0,23.509,23.485,17.0]
[1673897272078,17.0,23.508,23.485,17.0]
[1673897272295,20.0,23.507,23.486,20.0]
[1673897272917,17.0,23.506,23.486,20.0]
[1673897273874,20.0,23.512,23.486,20.0]
[1673897274193,4.8982,23.513,23.49,24.66]
[1673897274381,20.0,23.52,23.492,20.0]
[1673897274593,20.0,23.519,23.493,17.0]
[1673897274806,20.0,23.519,23.494,20.0]
[1673897275014,20.0,23.519,23.495,17.0]
[1673897275239,20.0,23.521,23.495,17.0]
[1673897275447,20.0,23.521,23.496,20.0]
[1673897275653,20.0,23.521,23.497,17.0]
[1673897276300,20.0,23.522,23.497,17.0]
[1673897276508,20.0,23.522,23.498,20.0]
[1673897276704,20.0,23.522,23.5,20.0]
[1673897276916,20.0,23.522,23.501,17.0]
[1673897277237,20.0,23.522,23.495,118.625]
[1673897277559,20.0,23.521,23.495,118.625]
[1673897277768,17.0,23.52,23.495,118.625]
[1673897277961,20.0,23.519,23.495,118.625]
[1673897278168,17.0,23.518,23.495,118.625]
[1673897278396,20.0,23.517,23.495,118.625]
[1673897278708,37.0,23.516,23.481,20.0]
[1673897278926,37.0,23.516,23.487,111.5481]
[1673897279337,37.0,23.516,23.492,20.0]
[1673897279338,20.0,23.515,23.492,20.0]
[1673897279550,37.0,23.514,23.487,111.5481]
[1673897280381,20.0,23.514,23.492,37.0]
[1673897280586,20.0,23.514,23.492,20.0]
[1673897280811,17.0,23.513,23.487,111.5481]
[1673897281130,20.0,23.511,23.487,111.5481]
[1673897281338,37.0,23.51,23.481,20.0]
[1673897281552,37.0,23.51,23.48,110.0419]
[1673897281553,20.0,23.509,23.48,110.0419]
[1673897281766,37.0,23.508,23.48,110.0419]
[1673897282260,41.8982,23.508,23.481,20.0]
[1673897282475,20.0,23.507,23.481,20.0]
[1673897282681,37.0,23.506,23.481,20.0]
[1673897283131,17.0,23.506,23.481,20.0]
[1673897283325,17.0,23.506,23.482,17.0]
[1673897283538,20.0,23.511,23.482,17.0]
[1673897283755,20.0,23.513,23.482,38.46196354]
[1673897284153,20.0,23.513,23.483,41.46196354]
[1673897284366,20.0,23.513,23.484,17.0]
[1673897284596,20.0,23.513,23.484,38.46196354]
[1673897284796,20.0,23.513,23.485,21.46196354]
[1673897285000,20.0,23.511,23.487,20.0]
[1673897285208,37.0,23.51,23.487,20.0]
[1673897285544,20.0,23.51,23.487,20.0]
[1673897285737,20.0,23.51,23.488,17.0]
[1673897286371,20.0,23.51,23.46,98.64]
[1673897286372,20.0,23.509,23.483,41.46196354]
[1673897286581,20.0,23.508,23.48,110.0419]
[1673897286790,20.0,23.507,23.48,110.0419]
[1673897287013,20.0,23.506,23.48,110.0419]
[1673897287227,20.0,23.504,23.48,110.0419]
[1673897287431,37.0,23.503,23.48,110.0419]
[1673897287646,37.0,23.503,23.47,44.66]
[1673897287858,37.0,23.503,23.476,113.8432]
[1673897287859,41.8982,23.503,23.476,113.8432]
[1673897288261,41.8982,23.503,23.47,21.46196354]
[1673897288482,20.0,23.502,23.471,113.8432]
[1673897288690,24.8982,23.501,23.471,113.8432]
[1673897288922,21.8982,23.5,23.471,113.8432]
[1673897289112,24.8982,23.499,23.471,113.8432]
[1673897289319,20.0,23.497,23.471,113.8432]
[1673897289750,37.0,23.496,23.471,113.8432]
[1673897289955,20.0,23.495,23.471,113.8432]
[1673897290160,37.0,23.494,23.471,113.8432]
[1673897290387,20.0,23.493,23.465,112.8499]
[1673897290591,37.0,23.492,23.465,223.6317]
[1673897291112,41.8982,23.492,23.465,223.6317]
[1673897291325,50.68919444,23.491,23.46,42.62]
[1673897291653,20.0,23.489,23.46,42.62]
[1673897291854,41.8982,23.488,23.46,42.62]
[1673897292058,4.8982,23.487,23.46,42.62]
[1673897292385,4.8982,23.487,23.461,20.0]
[1673897292590,20.0,23.488,23.461,41.46196354]
[1673897292810,20.0,23.49,23.461,41.46196354]
[1673897293000,20.0,23.491,23.462,21.46196354]
[1673897293209,20.0,23.491,23.463,37.0]
[1673897293621,1221.5,23.52,23.464,110.7355]
[1673897293844,399.1982,23.499,23.47,24.66]
[1673897294049,394.3,23.499,23.471,17.0]
[1673897294264,109.4049,23.512,23.472,44.32977695]
[1673897294485,109.4049,23.512,23.473,17.0]
[1673897294696,109.4049,23.512,23.475,5.07703531]
[1673897295006,109.4049,23.512,23.477,20.0]
[1673897295197,109.4049,23.512,23.479,20.0]
[1673897295405,109.4049,23.512,23.48,17.0]
[1673897295854,109.4049,23.512,23.479,17.0]
[1673897296075,109.4049,23.512,23.481,35.12888644]
[1673897296381,109.4049,23.512,23.478,108.2874]
[1673897296566,20.0,23.505,23.478,108.2874]
[1673897296777,20.0,23.504,23.478,108.2874]
[1673897297016,20.0,23.504,23.469,5.06266543]
[1673897297017,20.0,23.504,23.46,42.62]
[1673897297203,20.0,23.502,23.468,20.0]
[1673897297431,37.0,23.501,23.468,20.0]
[1673897297618,37.0,23.501,23.467,108.1459]
[1673897297827,20.0,23.5,23.467,108.1459]
[1673897298042,20.0,23.499,23.467,108.1459]
[1673897298362,20.0,23.497,23.467,108.1459]
[1673897298572,20.0,23.495,23.468,20.0]
[1673897298978,20.0,23.499,23.47,24.66]
[1673897299214,20.0,23.498,23.468,20.0]
[1673897299410,20.0,23.497,23.469,20.0]
[1673897300037,20.0,23.497,23.47,20.0]
[1673897300249,20.0,23.5,23.47,49.63315513]
[1673897300452,20.0,23.5,23.471,17.0]
[1673897301105,20.0,23.5,23.472,20.0]
[1673897301302,20.0,23.5,23.473,17.0]
[1673897301714,20.0,23.498,23.473,17.0]
[1673897301944,20.0,23.497,23.473,17.0]
[1673897302152,20.0,23.496,23.467,108.1459]
[1673897302896,17.0,23.495,23.467,108.1459]
[1673897303084,20.0,23.493,23.468,20.0]
[1673897303296,20.0,23.492,23.468,20.0]
[1673897303726,20.0,23.495,23.468,20.0]
[1673897303931,20.0,23.496,23.468,20.0]
[1673897304351,20.0,23.496,23.469,17.0]
[1673897305208,20.0,23.496,23.467,108.1459]
[1673897305528,17.0,23.495,23.467,108.1459]
[1673897305736,20.0,23.494,23.467,108.1459]
[1673897305941,20.0,23.496,23.467,108.1459]
[1673897306996,17.0,23.495,23.467,108.1459]
[1673897307310,40.0,23.494,23.467,108.1459]
[1673897307521,17.0,23.493,23.467,108.1459]
[1673897307724,20.0,23.492,23.467,108.1459]
[1673897307942,17.0,23.491,23.467,108.1459]
[1673897308143,40.0,23.49,23.467,108.1459]
[1673897308351,17.0,23.489,23.467,108.1459]
[1673897308569,20.0,23.488,23.467,108.1459]
[1673897308775,40.0,23.49,23.468,17.0]
[1673897309736,20.0,23.49,23.468,17.0]
[1673897310044,20.0,23.493,23.469,20.0]
[1673897310258,110.1191,23.506,23.47,17.0]
[1673897310451,110.1191,23.506,23.47,41.53]
[1673897310662,110.1191,23.506,23.471,6.05563972]
[1673897311004,20.0,23.501,23.473,20.0]
[1673897311208,20.0,23.501,23.474,17.0]
[1673897311621,20.0,23.501,23.474,52.25888644]
[1673897311929,20.0,23.505,23.475,20.0]
[1673897312140,20.0,23.505,23.476,17.0]
[1673897312358,20.0,23.505,23.477,20.0]
[1673897312550,20.0,23.505,23.478,17.0]
[1673897312761,20.0,23.505,23.479,20.0]
[1673897312990,20.0,23.505,23.48,37.0]
[1673897313601,20.0,23.505,23.479,20.0]
[1673897313934,20.0,23.505,23.478,228.6382]
[1673897314332,17.0,23.503,23.478,228.6382]
[1673897314564,20.0,23.502,23.478,228.6382]
[1673897314786,17.0,23.501,23.478,228.6382]
[1673897314988,20.0,23.499,23.478,228.6382]
[1673897315194,20.0,23.498,23.478,228.6382]
[1673897315402,20.0,23.496,23.478,228.6382]
[1673897315614,20.0,23.496,23.466,20.0]
[1673897315930,20.0,23.494,23.468,20.0]
[1673897316349,20.0,23.499,23.47,24.53]
[1673897316551,20.0,23.498,23.47,24.53]
[1673897316763,20.0,23.498,23.471,17.0]
[1673897316965,20.0,23.498,23.472,20.0]
[1673897317180,20.0,23.498,23.473,17.0]
[1673897317604,20.0,23.498,23.474,20.0]
[1673897317808,20.0,23.498,23.475,17.0]
[1673897318023,20.0,23.498,23.476,20.0]
[1673897318233,20.0,23.513,23.477,37.0]
[1673897318665,20.0,23.513,23.479,20.0]
[1673897318977,20.0,23.513,23.481,20.0]
[1673897319203,20.0,23.513,23.482,17.0]
[1673897319525,20.0,23.513,23.483,20.0]
[1673897319811,20.0,23.513,23.484,17.0]
[1673897320867,20.0,23.513,23.482,17.0]
[1673897321278,20.0,23.513,23.481,17.0]
[1673897321901,20.0,23.513,23.482,20.0]
[1673897322114,20.0,23.513,23.483,17.0]
[1673897322682,20.0,23.513,23.482,20.0]
[1673897322873,20.0,23.513,23.483,17.0]
[1673897323523,20.0,23.513,23.484,20.0]
[1673897323726,20.0,23.513,23.485,37.0]
[1673897323949,20.0,23.513,23.486,20.0]
[1673897324254,20.0,23.513,23.487,37.0]
[1673897324468,20.0,23.513,23.487,17.0]
[1673897324668,20.0,23.513,23.488,20.0]
[1673897324882,20.0,23.513,23.489,37.0]
[1673897325416,20.0,23.517,23.49,24.66]
[1673897325606,20.0,23.517,23.491,17.0]
[1673897325826,20.0,23.517,23.492,20.0]
[1673897326159,20.0,23.517,23.493,17.0]
[1673897328554,19.5,23.516,23.493,17.0]
[1673897328771,401.20093024,23.541,23.494,20.0]
[1673897328984,137.3785,23.54,23.5,24.66]
[1673897329506,137.3785,23.54,23.501,17.0]
[1673897329713,20.0,23.539,23.502,20.0]
[1673897330041,20.0,23.538,23.503,17.0]
[1673897330444,24.8982,23.538,23.503,17.0]
[1673897330658,17.0,23.537,23.503,17.0]
[1673897330871,20.0,23.535,23.504,110.6102]
[1673897331178,20.0,23.534,23.506,20.0]
[1673897331399,20.0,23.534,23.507,17.0]
[1673897331928,20.0,23.533,23.507,17.0]
[1673897332142,20.0,23.532,23.507,17.0]
[1673897332653,20.0,23.532,23.51,24.66]
[1673897332859,20.0,23.532,23.512,20.0]
[1673897333070,20.0,23.539,23.512,20.0]
[1673897333284,20.0,23.538,23.513,17.0]
[1673897333495,20.0,23.539,23.513,17.0]
[1673897333729,112.3803,23.545,23.514,20.0]
[1673897333939,20.0,23.544,23.515,37.0]
[1673897334263,20.0,23.544,23.517,20.0]
[1673897334481,20.0,23.544,23.518,17.0]
[1673897334660,20.0,23.544,23.519,20.0]
[1673897334999,20.0,23.544,23.52,37.0]
[1673897335396,20.0,23.555,23.52,61.53]
[1673897335619,133.7093,23.555,23.52,61.53]
[1673897336570,133.7093,23.555,23.522,20.0]
[1673897336894,20.0,23.554,23.523,17.0]
[1673897337083,20.0,23.553,23.521,17.0]
[1673897337289,20.0,23.552,23.521,17.0]
[1673897337710,20.0,23.552,23.52,24.53]
[1673897337711,20.0,23.551,23.52,24.53]
[1673897337924,37.0,23.55,23.52,24.53]
[1673897338141,20.0,23.55,23.52,24.53]
[1673897338348,20.0,23.551,23.521,6.00324441]
[1673897338567,20.0,23.553,23.522,20.0]
[1673897338765,20.0,23.553,23.524,4.29420862]
[1673897338979,20.0,23.553,23.526,5.13033079]
[1673897339182,20.0,23.553,23.527,37.0]
[1673897339707,20.0,23.553,23.528,20.0]
[1673897339917,20.0,23.553,23.529,37.0]
[1673897340769,20.0,23.553,23.529,20.0]
[1673897341188,20.0,23.553,23.527,20.0]
[1673897341405,20.0,23.553,23.526,20.0]
[1673897342020,20.0,23.553,23.527,17.0]
[1673897342338,20.0,23.553,23.528,20.0]
[1673897342339,20.0,23.552,23.528,20.0]
[1673897342542,20.0,23.553,23.529,17.0]
[1673897342752,20.0,23.553,23.53,20.0]
[1673897342979,20.0,23.553,23.531,17.0]
[1673897343187,20.0,23.553,23.528,41.46196354]
[1673897343188,20.0,23.553,23.528,21.46196354]
[1673897343402,20.0,23.551,23.525,116.8085]
[1673897343620,20.0,23.551,23.526,20.0]
[1673897343621,20.0,23.55,23.526,20.0]
[1673897343946,20.0,23.551,23.526,20.0]
[1673897345701,20.0,23.551,23.527,20.0]
[1673897345935,20.0,23.551,23.526,20.0]
[1673897346348,20.0,23.55,23.528,20.0]
[1673897346673,20.0,23.55,23.529,17.0]
[1673897347504,20.0,23.553,23.529,17.0]
[1673897347823,22.13086419,23.609,23.53,64.66]
[1673897347824,109.8261,23.562,23.53,64.66]
[1673897348351,109.8261,23.562,23.531,38.46196354]
[1673897348546,20.0,23.581,23.533,20.0]
[1673897348761,110.668,23.567,23.534,37.0]
[1673897349701,40.0,23.566,23.533,20.0]
[1673897350013,40.0,23.566,23.53,114.5565]
[1673897350014,44.8982,23.566,23.53,114.5565]
[1673897350225,34.18307494,23.565,23.53,114.5565]
[1673897350436,20.0,23.564,23.53,114.5565]
[1673897350647,20.0,23.563,23.53,114.5565]
[1673897350856,20.0,23.562,23.53,114.5565]
[1673897351068,17.0,23.561,23.53,114.5565]
[1673897351284,18.30801561,23.559,23.53,114.5565]
[1673897351478,20.0,23.557,23.532,20.0]
[1673897351689,20.0,23.556,23.533,17.0]
[1673897352238,20.0,23.556,23.531,17.0]
[1673897352553,20.0,23.555,23.531,17.0]
[1673897352748,37.0,23.554,23.531,17.0]
[1673897352955,37.0,23.554,23.53,114.5565]
[1673897353586,17.0,23.554,23.53,114.5565]
[1673897353801,20.0,23.555,23.53,114.5565]
[1673897354014,20.0,23.557,23.53,136.01846354]
[1673897354234,18.30801561,23.559,23.531,20.0]
[1673897354442,20.0,23.563,23.531,41.46196354]
[1673897354655,20.0,23.563,23.532,21.46196354]
[1673897354973,20.0,23.563,23.533,17.0]
[1673897355192,20.0,23.562,23.53,114.5565]
[1673897355399,20.0,23.561,23.531,20.0]
[1673897356140,17.0,23.56,23.531,20.0]
[1673897356347,20.0,23.559,23.532,17.0]
[1673897356537,17.0,23.558,23.532,17.0]
[1673897356747,20.0,23.557,23.532,17.0]
[1673897356966,20.0,23.555,23.532,17.0]
[1673897357900,20.0,23.555,23.531,20.0]
[1673897358337,20.0,23.553,23.531,20.0]
[1673897358565,20.0,23.553,23.532,20.0]
[1673897359269,20.0,23.557,23.533,17.0]
[1673897359478,20.0,23.558,23.534,20.0]
[1673897359690,20.0,23.56,23.535,17.0]
[1673897360006,20.0,23.568,23.536,20.0]
[1673897360226,20.0,23.56,23.537,17.0]
[1673897361055,20.0,23.56,23.531,20.0]
[1673897361485,20.0,23.558,23.531,20.0]
[1673897361698,20.0,23.557,23.531,20.0]
[1673897361911,17.0,23.556,23.531,20.0]
[1673897362130,20.0,23.555,23.531,20.0]
[1673897362439,20.0,23.553,23.514,5.96689177]
[1673897362652,37.0,23.552,23.514,5.96689177]
[1673897362863,37.0,23.552,23.519,115.7377]
[1673897363056,20.0,23.551,23.52,20.0]
[1673897363262,37.0,23.55,23.52,20.0]
[1673897363470,20.0,23.549,23.52,20.0]
[1673897363695,37.0,23.548,23.521,20.0]
[1673897364220,20.0,23.547,23.521,20.0]
[1673897364548,20.0,23.545,23.521,20.0]
[1673897364760,17.0,23.544,23.521,20.0]
[1673897364941,20.0,23.543,23.521,20.0]
[1673897365884,20.0,23.543,23.522,17.0]
[1673897367268,37.0,23.542,23.511,116.0314]
[1673897367488,71.19417529,23.542,23.511,116.0314]
[1673897367812,49.29597529,23.541,23.511,116.0314]
[1673897368006,49.29597529,23.541,23.501,20.0]
[1673897368007,37.0,23.54,23.501,20.0]
[1673897368202,4.8982,23.539,23.493,115.986]
[1673897368413,20.0,23.537,23.494,20.0]
[1673897368643,41.8982,23.536,23.494,20.0]
[1673897368855,4.8982,23.535,23.494,20.0]
[1673897369047,17.0,23.534,23.494,20.0]
[1673897369254,20.0,23.533,23.494,20.0]
[1673897369471,37.0,23.532,23.494,20.0]
[1673897369678,20.0,23.531,23.494,20.0]
[1673897369899,17.0,23.53,23.494,20.0]
[1673897370104,20.0,23.529,23.494,20.0]
[1673897370446,20.0,23.527,23.494,20.0]
[1673897370622,37.0,23.526,23.494,20.0]
[1673897370830,20.0,23.525,23.494,20.0]
[1673897371168,37.0,23.524,23.494,20.0]
[1673897371384,20.0,23.523,23.494,20.0]
[1673897371568,37.0,23.522,23.494,20.0]
[1673897372319,20.0,23.521,23.494,20.0]
[1673897372523,20.0,23.52,23.494,20.0]